[Event "Late-Titled-Tuesday-Blitz-April-16-2024"]
[Site "Chess.com"]
[Date "2024.04.16"]
[Round "7"]
[White "cukus"]
[Black "Chess_Star1234"]
[Result "1-0"]
[WhiteElo "2381"]
[BlackElo "2515"]
[TimeControl "180+1"]
[EndTime "15:15:19 PDT"]
[Termination "cukus won by checkmate"]

1. d4 {[%clk 0:03:00.9]} 1... d5 {[%clk 0:02:57.1]} 2. c4 {[%clk 0:03:00.8]}
2... e6 {[%clk 0:02:57.1]} 3. Nc3 {[%clk 0:03:00.7]} 3... Be7 {[%clk 0:02:56.6]}
4. cxd5 {[%clk 0:03:00.4]} 4... exd5 {[%clk 0:02:57.5]} 5. Bf4 {[%clk
0:03:00.1]} 5... c6 {[%clk 0:02:58]} 6. e3 {[%clk 0:03:00]} 6... Bf5 {[%clk
0:02:58.5]} 7. Bd3 {[%clk 0:02:59.3]} 7... Bxd3 {[%clk 0:02:58.6]} 8. Qxd3
{[%clk 0:03:00.2]} 8... Nf6 {[%clk 0:02:58.9]} 9. Nge2 {[%clk 0:03:00.5]} 9...
O-O {[%clk 0:02:59.4]} 10. O-O {[%clk 0:03:00.7]} 10... Nbd7 {[%clk 0:02:58.9]}
11. Rae1 {[%clk 0:03:00]} 11... Re8 {[%clk 0:02:57.9]} 12. f3 {[%clk 0:03:00.3]}
12... c5 {[%clk 0:02:50.5]} 13. dxc5 {[%clk 0:02:58.6]} 13... Nxc5 {[%clk
0:02:51.4]} 14. Qd2 {[%clk 0:02:57.1]} 14... Qb6 {[%clk 0:02:37.9]} 15. Nd4
{[%clk 0:02:51.7]} 15... Rad8 {[%clk 0:02:33.5]} 16. Kh1 {[%clk 0:02:30.9]}
16... a6 {[%clk 0:02:31.8]} 17. Nf5 {[%clk 0:02:20.2]} 17... Bf8 {[%clk
0:02:30.9]} 18. Bg5 {[%clk 0:02:15.8]} 18... Qe6 {[%clk 0:02:19.1]} 19. Nd4
{[%clk 0:02:10.6]} 19... Qb6 {[%clk 0:02:09.4]} 20. b3 {[%clk 0:02:02.3]} 20...
Rd7 {[%clk 0:02:01.6]} 21. Rd1 {[%clk 0:01:40.3]} 21... Ne6 {[%clk 0:01:37.9]}
22. Bxf6 {[%clk 0:01:37]} 22... gxf6 {[%clk 0:01:35.2]} 23. Nf5 {[%clk
0:01:36.8]} 23... Red8 {[%clk 0:01:03.8]} 24. Qf2 {[%clk 0:01:31.3]} 24... Kh8
{[%clk 0:00:51.7]} 25. Qh4 {[%clk 0:01:24.6]} 25... Ng7 {[%clk 0:00:41]} 26. Nh6
{[%clk 0:01:13.9]} 26... Qe6 {[%clk 0:00:40.9]} 27. Ne2 {[%clk 0:01:04.6]} 27...
Qxe3 {[%clk 0:00:15.8]} 28. Qxf6 {[%clk 0:00:59.1]} 28... Qxe2 {[%clk
0:00:13.6]} 29. Nxf7+ {[%clk 0:00:56.6]} 29... Rxf7 {[%clk 0:00:12.2]} 30. Qxd8
{[%clk 0:00:56.8]} 30... Qxa2 {[%clk 0:00:06.8]} 31. Qxd5 {[%clk 0:00:52.7]}
31... Re7 {[%clk 0:00:04]} 32. Qd8 {[%clk 0:00:49.9]} 32... Re8 {[%clk
0:00:03.3]} 33. Qb6 {[%clk 0:00:46.2]} 33... Re7 {[%clk 0:00:01.8]} 34. Rd8
{[%clk 0:00:46]} 34... Rf7 {[%clk 0:00:01.9]} 35. Qxb7 {[%clk 0:00:37.1]} 35...
Qd2 {[%clk 0:00:01]} 36. Qxa6 {[%clk 0:00:22.9]} 36... Rb7 {[%clk 0:00:01.9]}
37. Qxb7 {[%clk 0:00:22.4]} 37... Qxd8 {[%clk 0:00:02.2]} 38. b4 {[%clk
0:00:20.5]} 38... Kg8 {[%clk 0:00:02.2]} 39. b5 {[%clk 0:00:20.1]} 39... Qd3
{[%clk 0:00:01.9]} 40. Rc1 {[%clk 0:00:12.7]} 40... h5 {[%clk 0:00:02.6]} 41.
Qc6 {[%clk 0:00:11.1]} 41... Qd2 {[%clk 0:00:03]} 42. Qc4+ {[%clk 0:00:10.9]}
42... Kh8 {[%clk 0:00:03]} 43. b6 {[%clk 0:00:10.9]} 43... Qb2 {[%clk
0:00:02.9]} 44. Qc8 {[%clk 0:00:09.5]} 44... Kh7 {[%clk 0:00:02]} 45. b7 {[%clk
0:00:08.6]} 45... Ba3 {[%clk 0:00:02.1]} 46. Qc2+ {[%clk 0:00:08.2]} 46... Qxc2
{[%clk 0:00:01.8]} 47. Rxc2 {[%clk 0:00:09.1]} 47... Bd6 {[%clk 0:00:02.4]} 48.
Rc8 {[%clk 0:00:09]} 48... Kg6 {[%clk 0:00:02.3]} 49. Rc6 {[%clk 0:00:08.8]}
49... Nf5 {[%clk 0:00:02]} 50. b8=Q {[%clk 0:00:08.1]} 50... Kg5 {[%clk
0:00:02.5]} 51. Rxd6 {[%clk 0:00:08.2]} 51... Nxd6 {[%clk 0:00:03.4]} 52. Qxd6
{[%clk 0:00:08.1]} 52... Kh4 {[%clk 0:00:02.6]} 53. Qg3# {[%clk 0:00:08.2]} 1-0

[Event "Late-Titled-Tuesday-Blitz-April-16-2024"]
[Site "Chess.com"]
[Date "2024.04.16"]
[Round "7"]
[White "FMYiLiu"]
[Black "zacachess"]
[Result "1-0"]
[WhiteElo "2472"]
[BlackElo "2352"]
[TimeControl "180+1"]
[EndTime "15:15:25 PDT"]
[Termination "FMYiLiu won by checkmate"]

1. d4 {[%clk 0:03:00.9]} 1... Nf6 {[%clk 0:02:59.7]} 2. Nc3 {[%clk 0:03:00.5]}
2... d5 {[%clk 0:02:59.3]} 3. Bf4 {[%clk 0:03:00.7]} 3... c5 {[%clk 0:02:59.1]}
4. e3 {[%clk 0:03:00.5]} 4... cxd4 {[%clk 0:02:58.9]} 5. exd4 {[%clk 0:02:59.6]}
5... a6 {[%clk 0:02:58.5]} 6. Nf3 {[%clk 0:02:58.8]} 6... Nc6 {[%clk 0:02:58.9]}
7. Ne5 {[%clk 0:02:58.8]} 7... Bd7 {[%clk 0:02:58.5]} 8. g4 {[%clk 0:02:58.6]}
8... e6 {[%clk 0:02:56.5]} 9. g5 {[%clk 0:02:58.2]} 9... Ng8 {[%clk 0:02:54]}
10. h4 {[%clk 0:02:51.9]} 10... Nge7 {[%clk 0:02:51.4]} 11. Ne2 {[%clk 0:02:30]}
11... Nxe5 {[%clk 0:02:43.1]} 12. Bxe5 {[%clk 0:02:26.2]} 12... Nc6 {[%clk
0:02:43.4]} 13. Bf4 {[%clk 0:02:22.8]} 13... Qb6 {[%clk 0:02:36.8]} 14. Rb1
{[%clk 0:02:18.3]} 14... Qa5+ {[%clk 0:02:20.3]} 15. c3 {[%clk 0:02:18.1]} 15...
Qxa2 {[%clk 0:02:14.6]} 16. Qc2 {[%clk 0:02:13]} 16... Qa5 {[%clk 0:02:04.7]}
17. h5 {[%clk 0:02:01.6]} 17... Be7 {[%clk 0:01:59.6]} 18. Bg2 {[%clk
0:01:51.4]} 18... Rc8 {[%clk 0:01:54]} 19. Qd2 {[%clk 0:01:47.4]} 19... Qb6
{[%clk 0:01:47]} 20. Nc1 {[%clk 0:01:40.4]} 20... Na5 {[%clk 0:01:44.4]} 21. Nd3
{[%clk 0:01:39.8]} 21... Bb5 {[%clk 0:01:33.7]} 22. Ne5 {[%clk 0:01:29.5]} 22...
Nc4 {[%clk 0:01:23.4]} 23. Nxc4 {[%clk 0:01:25.8]} 23... Bxc4 {[%clk 0:01:23.4]}
24. Be5 {[%clk 0:01:21.3]} 24... f6 {[%clk 0:01:20.4]} 25. Bf4 {[%clk 0:01:14]}
25... a5 {[%clk 0:01:12.4]} 26. h6 {[%clk 0:01:10.4]} 26... g6 {[%clk
0:01:07.2]} 27. Rh3 {[%clk 0:00:55.4]} 27... O-O {[%clk 0:01:06.1]} 28. gxf6
{[%clk 0:00:44.1]} 28... Bxf6 {[%clk 0:01:04.3]} 29. Rg3 {[%clk 0:00:35.8]}
29... a4 {[%clk 0:00:57.4]} 30. Bh3 {[%clk 0:00:20.1]} 30... Rce8 {[%clk
0:00:56.3]} 31. Qe3 {[%clk 0:00:19.8]} 31... a3 {[%clk 0:00:48.3]} 32. b4 {[%clk
0:00:17.3]} 32... a2 {[%clk 0:00:46.3]} 33. Ra1 {[%clk 0:00:17.7]} 33... Qa6
{[%clk 0:00:35]} 34. Be5 {[%clk 0:00:17.7]} 34... Qa3 {[%clk 0:00:25.2]} 35.
Bxf6 {[%clk 0:00:16.3]} 35... Rxf6 {[%clk 0:00:26.1]} 36. Qe5 {[%clk 0:00:16.6]}
36... Kf7 {[%clk 0:00:24]} 37. Rf3 {[%clk 0:00:14]} 37... Re7 {[%clk 0:00:12.1]}
38. Rxf6+ {[%clk 0:00:09.7]} 38... Ke8 {[%clk 0:00:12.4]} 39. Rf3 {[%clk
0:00:08.8]} 39... Qb2 {[%clk 0:00:11.6]} 40. Qb8+ {[%clk 0:00:07.4]} 40... Kd7
{[%clk 0:00:11.3]} 41. Qxb7+ {[%clk 0:00:07.6]} 41... Kd6 {[%clk 0:00:10.3]} 42.
Qb6+ {[%clk 0:00:07.6]} 42... Kd7 {[%clk 0:00:10.4]} 43. Qb7+ {[%clk 0:00:06.7]}
43... Kd6 {[%clk 0:00:10.6]} 44. Qb8+ {[%clk 0:00:06.8]} 44... Kd7 {[%clk
0:00:10.5]} 45. Rf8 {[%clk 0:00:07.5]} 45... Qxa1+ {[%clk 0:00:09.9]} 46. Kd2
{[%clk 0:00:08.1]} 46... Qb2+ {[%clk 0:00:10.3]} 47. Ke3 {[%clk 0:00:08.2]}
47... Qxc3+ {[%clk 0:00:10.7]} 48. Kf4 {[%clk 0:00:08]} 48... Qxd4+ {[%clk
0:00:11.1]} 49. Kg3 {[%clk 0:00:08.6]} 49... Qd3+ {[%clk 0:00:09.7]} 50. f3
{[%clk 0:00:07.5]} 50... Kc6 {[%clk 0:00:06.8]} 51. Rc8+ {[%clk 0:00:06.9]}
51... Kd7 {[%clk 0:00:06.7]} 52. Qc7# {[%clk 0:00:07.3]} 1-0

[Event "Late-Titled-Tuesday-Blitz-April-16-2024"]
[Site "Chess.com"]
[Date "2024.04.16"]
[Round "7"]
[White "PawnEatingZombie"]
[Black "DinaBelenkaya"]
[Result "1/2-1/2"]
[WhiteElo "2259"]
[BlackElo "2419"]
[TimeControl "180+1"]
[EndTime "15:15:27 PDT"]
[Termination "Game drawn by repetition"]

1. e4 {[%clk 0:03:00.9]} 1... c6 {[%clk 0:02:59.3]} 2. Nf3 {[%clk 0:02:59.8]}
2... d5 {[%clk 0:03:00.2]} 3. d3 {[%clk 0:02:59.4]} 3... dxe4 {[%clk 0:02:59.8]}
4. dxe4 {[%clk 0:02:59.6]} 4... Qxd1+ {[%clk 0:03:00.6]} 5. Kxd1 {[%clk
0:03:00.1]} 5... g5 {[%clk 0:03:00.9]} 6. Ne1 {[%clk 0:02:51.3]} 6... g4 {[%clk
0:02:59.3]} 7. Nd3 {[%clk 0:02:42]} 7... h5 {[%clk 0:02:50.1]} 8. Be3 {[%clk
0:02:40]} 8... Nf6 {[%clk 0:02:41.3]} 9. Nd2 {[%clk 0:02:39.6]} 9... Na6 {[%clk
0:02:38.3]} 10. c3 {[%clk 0:02:37.4]} 10... Bh6 {[%clk 0:02:37.5]} 11. Bxh6
{[%clk 0:02:36.2]} 11... Rxh6 {[%clk 0:02:38.4]} 12. Kc2 {[%clk 0:02:32.2]}
12... Be6 {[%clk 0:02:23.3]} 13. b3 {[%clk 0:02:06.6]} 13... O-O-O {[%clk
0:02:18]} 14. Re1 {[%clk 0:02:05]} 14... Nd7 {[%clk 0:02:05.6]} 15. Nf4 {[%clk
0:02:02.8]} 15... Ne5 {[%clk 0:02:00.8]} 16. Bxa6 {[%clk 0:01:57.7]} 16... bxa6
{[%clk 0:02:01.3]} 17. Nxe6 {[%clk 0:01:57]} 17... fxe6 {[%clk 0:01:53.8]} 18.
f4 {[%clk 0:01:49.2]} 18... gxf3 {[%clk 0:01:53.1]} 19. Nxf3 {[%clk 0:01:47.8]}
19... Nxf3 {[%clk 0:01:36.9]} 20. gxf3 {[%clk 0:01:48.7]} 20... Rf6 {[%clk
0:01:36.6]} 21. Rhf1 {[%clk 0:01:31.2]} 21... e5 {[%clk 0:01:32.9]} 22. Re3
{[%clk 0:01:07.2]} 22... Rg8 {[%clk 0:01:31]} 23. Rf2 {[%clk 0:01:07.2]} 23...
Rf4 {[%clk 0:01:30.7]} 24. Kd3 {[%clk 0:01:02]} 24... Rg1 {[%clk 0:01:25.1]} 25.
Kc4 {[%clk 0:01:01.7]} 25... Kc7 {[%clk 0:01:19.4]} 26. Kc5 {[%clk 0:00:59.2]}
26... h4 {[%clk 0:01:15]} 27. a4 {[%clk 0:00:45.9]} 27... h3 {[%clk 0:01:14.4]}
28. b4 {[%clk 0:00:40]} 28... Rg2 {[%clk 0:01:05.3]} 29. Ree2 {[%clk 0:00:40.1]}
29... Rg1 {[%clk 0:00:47.4]} 30. Rd2 {[%clk 0:00:33.3]} 30... Re1 {[%clk
0:00:40.6]} 31. Rd3 {[%clk 0:00:31.1]} 31... Ra1 {[%clk 0:00:34.6]} 32. a5
{[%clk 0:00:31.1]} 32... Rg1 {[%clk 0:00:32.3]} 33. c4 {[%clk 0:00:30.5]} 33...
Rg2 {[%clk 0:00:29.5]} 34. Rdd2 {[%clk 0:00:30.6]} 34... Rg1 {[%clk 0:00:26.6]}
35. Rd3 {[%clk 0:00:25.4]} 35... Rc1 {[%clk 0:00:23.8]} 36. Rfd2 {[%clk
0:00:24.5]} 36... Rf8 {[%clk 0:00:19]} 37. Rd7+ {[%clk 0:00:24.3]} 37... Kb8
{[%clk 0:00:19.4]} 38. Rxe7 {[%clk 0:00:23.3]} 38... Rc3 {[%clk 0:00:16.4]} 39.
Rdd7 {[%clk 0:00:22.7]} 39... Rcxf3 {[%clk 0:00:16]} 40. Rb7+ {[%clk 0:00:22.5]}
40... Ka8 {[%clk 0:00:15]} 41. Rxa7+ {[%clk 0:00:22.7]} 41... Kb8 {[%clk
0:00:15.5]} 42. Reb7+ {[%clk 0:00:22.2]} 42... Kc8 {[%clk 0:00:16]} 43. Rc7+
{[%clk 0:00:19.7]} 43... Kb8 {[%clk 0:00:13.7]} 44. Rcb7+ {[%clk 0:00:16.4]}
44... Kc8 {[%clk 0:00:13.4]} 45. Rb6 {[%clk 0:00:14]} 45... R3f6 {[%clk
0:00:12.7]} 46. Ra8+ {[%clk 0:00:10.7]} 46... Kc7 {[%clk 0:00:12.6]} 47. Rxf8
{[%clk 0:00:11.6]} 47... Rxf8 {[%clk 0:00:12.4]} 48. Rxc6+ {[%clk 0:00:12.3]}
48... Kb7 {[%clk 0:00:12.7]} 49. Rb6+ {[%clk 0:00:12.7]} 49... Ka7 {[%clk
0:00:13.1]} 50. Kd5 {[%clk 0:00:13.3]} 50... Rf2 {[%clk 0:00:13]} 51. Rh6 {[%clk
0:00:11.8]} 51... Rxh2 {[%clk 0:00:13.3]} 52. Kxe5 {[%clk 0:00:12.1]} 52... Kb7
{[%clk 0:00:13]} 53. Ke6 {[%clk 0:00:11.5]} 53... Re2 {[%clk 0:00:12.2]} 54. e5
{[%clk 0:00:10.9]} 54... h2 {[%clk 0:00:11.5]} 55. Kd6 {[%clk 0:00:09.9]} 55...
Rd2+ {[%clk 0:00:10.7]} 56. Ke7 {[%clk 0:00:10]} 56... Kc7 {[%clk 0:00:11]} 57.
e6 {[%clk 0:00:10.4]} 57... Re2 {[%clk 0:00:11]} 58. c5 {[%clk 0:00:08.6]} 58...
Kc6 {[%clk 0:00:10.8]} 59. Kf7 {[%clk 0:00:08.8]} 59... Rf2+ {[%clk 0:00:11]}
60. Ke8 {[%clk 0:00:08.6]} 60... Kc7 {[%clk 0:00:10.5]} 61. e7 {[%clk
0:00:08.2]} 61... Re2 {[%clk 0:00:10.2]} 62. Kf8 {[%clk 0:00:06.7]} 62... Rf2+
{[%clk 0:00:10.6]} 63. Ke8 {[%clk 0:00:06.2]} 63... Re2 {[%clk 0:00:10.5]} 64.
Kf8 {[%clk 0:00:04.9]} 64... Rf2+ {[%clk 0:00:11]} 65. Ke8 {[%clk 0:00:05.1]}
1/2-1/2

[Event "Late-Titled-Tuesday-Blitz-April-16-2024"]
[Site "Chess.com"]
[Date "2024.04.16"]
[Round "7"]
[White "AlexeiShirov"]
[Black "HansOnTwitch"]
[Result "1/2-1/2"]
[WhiteElo "2837"]
[BlackElo "3156"]
[TimeControl "180+1"]
[EndTime "15:15:29 PDT"]
[Termination "Game drawn by repetition"]

1. e4 {[%clk 0:03:00.9]} 1... c5 {[%clk 0:02:58.4]} 2. Nf3 {[%clk 0:03:00.8]}
2... d6 {[%clk 0:02:58.8]} 3. d4 {[%clk 0:03:00.9]} 3... cxd4 {[%clk 0:02:59.3]}
4. Nxd4 {[%clk 0:03:01.4]} 4... Nf6 {[%clk 0:02:59.8]} 5. Nc3 {[%clk 0:03:01.7]}
5... a6 {[%clk 0:03:00.5]} 6. Be3 {[%clk 0:03:01.7]} 6... e5 {[%clk 0:03:00.3]}
7. Nb3 {[%clk 0:03:01.2]} 7... Be6 {[%clk 0:03:00.9]} 8. f3 {[%clk 0:03:00.9]}
8... Be7 {[%clk 0:03:01.2]} 9. Qd2 {[%clk 0:03:00.3]} 9... h5 {[%clk 0:03:01.8]}
10. Nd5 {[%clk 0:02:52.4]} 10... Nxd5 {[%clk 0:03:00.8]} 11. exd5 {[%clk
0:02:51.8]} 11... Bf5 {[%clk 0:03:01.4]} 12. Na5 {[%clk 0:02:48.7]} 12... b6
{[%clk 0:02:57]} 13. Nc4 {[%clk 0:02:45.8]} 13... Nd7 {[%clk 0:02:56.1]} 14. a4
{[%clk 0:02:44]} 14... O-O {[%clk 0:02:50.3]} 15. Be2 {[%clk 0:02:42.4]} 15...
Bh4+ {[%clk 0:02:46]} 16. g3 {[%clk 0:02:40.9]} 16... Be7 {[%clk 0:02:46.1]} 17.
h4 {[%clk 0:02:31.8]} 17... Rc8 {[%clk 0:02:42.3]} 18. c3 {[%clk 0:02:26.6]}
18... Nc5 {[%clk 0:02:37.6]} 19. Ra3 {[%clk 0:02:19.1]} 19... e4 {[%clk
0:02:35.3]} 20. O-O {[%clk 0:02:10.7]} 20... Bg6 {[%clk 0:02:33.6]} 21. f4
{[%clk 0:02:07.1]} 21... Bf5 {[%clk 0:02:11.4]} 22. Bd4 {[%clk 0:02:01.8]} 22...
Nd3 {[%clk 0:01:29.3]} 23. Ne3 {[%clk 0:01:55.7]} 23... Bh3 {[%clk 0:01:17.8]}
24. Bxd3 {[%clk 0:01:51.7]} 24... exd3 {[%clk 0:01:17.5]} 25. Re1 {[%clk
0:01:49.5]} 25... Re8 {[%clk 0:01:14.7]} 26. Raa1 {[%clk 0:01:44.7]} 26... Bf6
{[%clk 0:00:58.3]} 27. Qxd3 {[%clk 0:01:44.5]} 27... Bxd4 {[%clk 0:00:55.1]} 28.
Qxd4 {[%clk 0:01:44.7]} 28... b5 {[%clk 0:00:55.3]} 29. axb5 {[%clk 0:01:42.8]}
29... axb5 {[%clk 0:00:56.2]} 30. Kf2 {[%clk 0:01:41.1]} 30... Ra8 {[%clk
0:00:50.5]} 31. Rxa8 {[%clk 0:01:25.1]} 31... Qxa8 {[%clk 0:00:50.5]} 32. Qb4
{[%clk 0:01:21.5]} 32... Qa6 {[%clk 0:00:44.1]} 33. Qd4 {[%clk 0:01:06.4]} 33...
Qa2 {[%clk 0:00:28.3]} 34. Re2 {[%clk 0:01:00.2]} 34... Qb1 {[%clk 0:00:25.5]}
35. Qd1 {[%clk 0:00:48.8]} 35... Qe4 {[%clk 0:00:23.6]} 36. Re1 {[%clk
0:00:37.8]} 36... b4 {[%clk 0:00:16]} 37. Qd4 {[%clk 0:00:36.7]} 37... Qg6
{[%clk 0:00:03.4]} 38. Qxb4 {[%clk 0:00:32.2]} 38... Kh8 {[%clk 0:00:02.8]} 39.
Qd4 {[%clk 0:00:28.6]} 39... Rb8 {[%clk 0:00:02.6]} 40. b4 {[%clk 0:00:27]}
40... f6 {[%clk 0:00:03.2]} 41. Rd1 {[%clk 0:00:20.5]} 41... Re8 {[%clk
0:00:02.3]} 42. Qd3 {[%clk 0:00:19.3]} 42... Qf7 {[%clk 0:00:01.9]} 43. Qe2
{[%clk 0:00:18.3]} 43... g6 {[%clk 0:00:01.5]} 44. Qd3 {[%clk 0:00:17.7]} 44...
Qa7 {[%clk 0:00:01.6]} 45. Qd4 {[%clk 0:00:17.1]} 45... Qe7 {[%clk 0:00:02.3]}
46. b5 {[%clk 0:00:16.1]} 46... Kg7 {[%clk 0:00:02.7]} 47. b6 {[%clk 0:00:16]}
47... Ra8 {[%clk 0:00:02.2]} 48. Rd2 {[%clk 0:00:15.3]} 48... Qb7 {[%clk
0:00:02.6]} 49. Nc4 {[%clk 0:00:13.9]} 49... Ra1 {[%clk 0:00:02.7]} 50. Nxd6
{[%clk 0:00:13.7]} 50... Qe7 {[%clk 0:00:02.7]} 51. Ne4 {[%clk 0:00:13.8]} 51...
Rf1+ {[%clk 0:00:02.9]} 52. Ke2 {[%clk 0:00:13.3]} 52... Qa3 {[%clk 0:00:03.6]}
53. Qxf6+ {[%clk 0:00:12.3]} 53... Kg8 {[%clk 0:00:02.6]} 54. Qxg6+ {[%clk
0:00:12.3]} 54... Kh8 {[%clk 0:00:03.3]} 55. Qh6+ {[%clk 0:00:12.3]} 55... Kg8
{[%clk 0:00:03.9]} 56. Qg6+ {[%clk 0:00:12.6]} 56... Kh8 {[%clk 0:00:04.6]} 57.
Qxh5+ {[%clk 0:00:12.9]} 57... Kg8 {[%clk 0:00:04.1]} 58. Qg5+ {[%clk
0:00:13.4]} 58... Kh8 {[%clk 0:00:04.7]} 59. Qh6+ {[%clk 0:00:13.2]} 59... Kg8
{[%clk 0:00:05.3]} 60. Qg6+ {[%clk 0:00:13.3]} 60... Kh8 {[%clk 0:00:06]} 61.
Qf6+ {[%clk 0:00:13.4]} 61... Kg8 {[%clk 0:00:06.6]} 62. Qg6+ {[%clk 0:00:13.5]}
62... Kh8 {[%clk 0:00:07.1]} 63. Qf6+ {[%clk 0:00:13.2]} 63... Kg8 {[%clk
0:00:07.7]} 64. Qg6+ {[%clk 0:00:13.4]} 1/2-1/2

[Event "Late-Titled-Tuesday-Blitz-April-16-2024"]
[Site "Chess.com"]
[Date "2024.04.16"]
[Round "7"]
[White "dasatcu90"]
[Black "ploxoi"]
[Result "0-1"]
[WhiteElo "2181"]
[BlackElo "2405"]
[TimeControl "180+1"]
[EndTime "15:15:29 PDT"]
[Termination "ploxoi won on time"]

1. d4 {[%clk 0:03:00.9]} 1... d5 {[%clk 0:02:59.1]} 2. Nf3 {[%clk 0:03:01.4]}
2... Nf6 {[%clk 0:02:56.4]} 3. e3 {[%clk 0:03:01.6]} 3... e6 {[%clk 0:02:52.5]}
4. Bd3 {[%clk 0:03:01.7]} 4... c5 {[%clk 0:02:48]} 5. c3 {[%clk 0:03:01.7]} 5...
Nc6 {[%clk 0:02:47.4]} 6. Nbd2 {[%clk 0:03:01.8]} 6... Bd6 {[%clk 0:02:46.9]} 7.
O-O {[%clk 0:03:02.3]} 7... O-O {[%clk 0:02:45.5]} 8. dxc5 {[%clk 0:03:02.9]}
8... Bxc5 {[%clk 0:02:44.6]} 9. b4 {[%clk 0:03:03.8]} 9... Bd6 {[%clk
0:02:44.5]} 10. b5 {[%clk 0:03:04.3]} 10... Ne5 {[%clk 0:02:44.5]} 11. Nxe5
{[%clk 0:03:04]} 11... Bxe5 {[%clk 0:02:45.4]} 12. Bb2 {[%clk 0:03:03.9]} 12...
Qc7 {[%clk 0:02:45.9]} 13. Nf3 {[%clk 0:03:03.5]} 13... Bd6 {[%clk 0:02:46.1]}
14. c4 {[%clk 0:03:03.6]} 14... dxc4 {[%clk 0:02:40.4]} 15. Rc1 {[%clk
0:03:03.1]} 15... Qe7 {[%clk 0:02:34.6]} 16. Rxc4 {[%clk 0:02:48.9]} 16... Bd7
{[%clk 0:02:33.9]} 17. Bxf6 {[%clk 0:02:43]} 17... Qxf6 {[%clk 0:02:32.2]} 18.
Bxh7+ {[%clk 0:02:35.9]} 18... Kxh7 {[%clk 0:02:24.5]} 19. Qxd6 {[%clk
0:02:32.5]} 19... Bxb5 {[%clk 0:02:24.2]} 20. Rh4+ {[%clk 0:02:30.4]} 20... Kg8
{[%clk 0:02:24.8]} 21. Rb1 {[%clk 0:02:16.8]} 21... Bc6 {[%clk 0:02:18.8]} 22.
Qd3 {[%clk 0:02:10]} 22... g6 {[%clk 0:02:07.2]} 23. Rf4 {[%clk 0:02:03]} 23...
Qe7 {[%clk 0:02:05.9]} 24. Ne5 {[%clk 0:01:55]} 24... Rfd8 {[%clk 0:02:04.1]}
25. Qc3 {[%clk 0:00:55.3]} 25... Be8 {[%clk 0:01:44.8]} 26. Ng4 {[%clk
0:00:51.9]} 26... f5 {[%clk 0:01:27.2]} 27. Ne5 {[%clk 0:00:23.5]} 27... Rac8
{[%clk 0:01:24.4]} 28. Rc4 {[%clk 0:00:22.6]} 28... Rxc4 {[%clk 0:01:16.4]} 29.
Qxc4 {[%clk 0:00:23.5]} 29... Qd6 {[%clk 0:01:16.6]} 30. f4 {[%clk 0:00:22.6]}
30... b5 {[%clk 0:01:10.6]} 31. Qb4 {[%clk 0:00:20.6]} 31... Qxb4 {[%clk
0:01:05.2]} 32. Rxb4 {[%clk 0:00:21.5]} 32... Rd2 {[%clk 0:01:05.1]} 33. a3
{[%clk 0:00:18.7]} 33... Re2 {[%clk 0:00:49.8]} 34. Rb3 {[%clk 0:00:18.5]} 34...
a6 {[%clk 0:00:46.9]} 35. h3 {[%clk 0:00:18.1]} 35... Kg7 {[%clk 0:00:40]} 36.
Kf1 {[%clk 0:00:18.6]} 36... Rc2 {[%clk 0:00:39.1]} 37. g4 {[%clk 0:00:17.3]}
37... Kf6 {[%clk 0:00:36.6]} 38. g5+ {[%clk 0:00:17.1]} 38... Kg7 {[%clk
0:00:36.7]} 39. Kg1 {[%clk 0:00:16.7]} 39... Kf8 {[%clk 0:00:21.7]} 40. Rd3
{[%clk 0:00:14.8]} 40... Ke7 {[%clk 0:00:22.1]} 41. h4 {[%clk 0:00:13.7]} 41...
a5 {[%clk 0:00:20.5]} 42. Rb3 {[%clk 0:00:13]} 42... Ra2 {[%clk 0:00:17.9]} 43.
Rc3 {[%clk 0:00:12]} 43... b4 {[%clk 0:00:17.5]} 44. axb4 {[%clk 0:00:11.9]}
44... axb4 {[%clk 0:00:17.4]} 45. Rc7+ {[%clk 0:00:12.6]} 45... Kd6 {[%clk
0:00:17.3]} 46. Rb7 {[%clk 0:00:12.7]} 46... Ra1+ {[%clk 0:00:16.2]} 47. Kf2
{[%clk 0:00:12.4]} 47... Rb1 {[%clk 0:00:16.6]} 48. Kf3 {[%clk 0:00:08.4]} 48...
Rh1 {[%clk 0:00:14.1]} 49. Kg3 {[%clk 0:00:08.1]} 49... Rb1 {[%clk 0:00:13.6]}
50. Kf3 {[%clk 0:00:08.2]} 50... b3 {[%clk 0:00:14.2]} 51. h5 {[%clk 0:00:07.9]}
51... gxh5 {[%clk 0:00:14.2]} 52. g6 {[%clk 0:00:08.1]} 52... b2 {[%clk
0:00:12.2]} 53. g7 {[%clk 0:00:08.5]} 53... Rg1 {[%clk 0:00:12.4]} 54. Rxb2
{[%clk 0:00:07.2]} 54... Rxg7 {[%clk 0:00:12]} 55. Rb6+ {[%clk 0:00:07.3]} 55...
Ke7 {[%clk 0:00:09.3]} 56. Rb8 {[%clk 0:00:01.6]} 56... Kf6 {[%clk 0:00:10.2]}
0-1